[Event "18th Brasschaat Open 2018"]
[Site "Brasschaat"]
[Date "2018.08.26"]
[Round "9"]
[White "Follesa, Enrico"]
[Black "Van Dijck, Bjarne"]
[Result "0-1"]
[ECO "C45"]
[WhiteElo "1856"]
[BlackElo "1932"]
[Annotator "NA"]
[PlyCount "78"]
[EventDate "2018.08.18"]
[EventType "swiss"]
[EventCountry "BEL"]
[SourceTitle "playchess.com"]
[Source "ChessBase"]
[SourceQuality "1"]
[TimeControl "40/5400+30:1800+30"]

1. e4 {[%emt 0:00:00]} e5 {[%emt 0:00:00]} 2. Nf3 {[%emt 0:00:00]} Nc6 {[%emt 0:00:00]} 3. d4 {[%emt 0:00:00]} exd4 {[%emt 0:00:00]} 4. Nxd4 {[%emt 0:00:00]} Bb4+ {[%emt 0:00:00]} 5. c3 {[%emt 0:00:00]} Bc5 {[%emt 0:00:00]} 6. Be3 {[%emt 0:00:09]} Bb6 {[%emt 0:00:00] C45: Scotch Game} 7. g3 {[%emt 0:00:52]} (7. Nf5 Bxe3 8. Nxe3 Nf6 9. f3 O-O 10. c4 d6 11. Nc3 Nd7 12. Be2 Nc5 13. O-O a5 14. Qd2 Bd7 15. f4 {1-0 (37) Idani,P (2572)-Gordievsky,D (2653) Qinhuangdao 2018}) 7... Nf6 {[%emt 0:01:44]} 8. Bg2 {[%emt 0:00:37]} O-O {[%emt 0:03:15]} 9. O-O {[%emt 0:00:07]} Re8 {[%emt 0:01:11]} 10. Re1 {[%emt 0:13:37]} d5 {[%emt 0:28:59]} 11. exd5 {[%emt 0:06:56]} Nxd4 $146 {[%emt 0:00:32]} ({Predecessor:} 11... Bg4 12. Nxc6 bxc6 13. Qd2 Nxd5 14. Bxb6 Rxe1+ 15. Qxe1 axb6 {0-1 (62) Gerlagh,J (2103)-Timmermans,I (2207) Maastricht 2014}) 12. Bxd4 {[%emt 0:01:21]} Bxd4 {[%emt 0:00:04]} 13. cxd4 {[%emt 0:01:15]} Bg4 {[%emt 0:00:17]} 14. Rxe8+ {[%emt 0:00:37]} Qxe8 {[%emt 0:00:05]} 15. Qd2 {[%emt 0:11:30]} Qd7 {[%emt 0:13:24]} 16. Nc3 {[%emt 0:00:45]} Bh3 {[%emt 0:09:40]} 17. Bh1 {[%emt 0:05:44]} Re8 {[%emt 0:09:34]} 18. Re1 {[%emt 0:00:27]} h5 {[%emt 0:06:57]} 19. Re5 $14 {[%emt 0:06:11]} h4 {[%emt 0:03:23]} 20. Qe2 {[%emt 0:07:49]} Bg4 {[%emt 0:03:36]} 21. Bf3 {[%emt 0:07:46]} Bxf3 {[%emt 0:00:08]} 22. Qxf3 {[%emt 0:00:11]} h3 {[%emt 0:00:07]} 23. Qf4 {[%emt 0:12:23]} b5 {[%emt 0:08:54]} 24. Rxe8+ {[%emt 0:03:46]} Qxe8 {[%emt 0:06:36]} 25. Qe5 {[%emt 0:00:14]} Qd7 {[%emt 0:00:03]} 26. d6 {[%emt 0:03:56]} b4 {[%emt 0:00:12]} 27. Nd5 {[%emt 0:02:38]} Nxd5 {[%emt 0:00:35]} 28. Qxd5 {[%emt 0:00:01]} cxd6 {[%emt 0:00:47]} 29. Qa8+ {[%emt 0:00:15]} Kh7 {[%emt 0:00:05]} 30. Qe4+ {[%emt 0:00:02]} g6 {[%emt 0:01:20]} 31. b3 {[%emt 0:00:32]} Kg7 {[%emt 0:00:31]} 32. d5 {[%emt 0:00:41]} Qc7 {[%emt 0:02:20]} 33. Qd4+ {[%emt 0:00:46]} Kg8 {[%emt 0:00:10]} 34. Qc4 {[%emt 0:03:11]} Qxc4 {[%emt 0:01:41]} 35. bxc4 {[%emt 0:00:08]} a5 {[%emt 0:00:02]} 36. Kf1 {[%emt 0:00:08]} a4 {[%emt 0:00:07]} 37. Ke2 {[%emt 0:00:27]} b3 {[%emt 0:00:07]} 38. axb3 {[%emt 0:00:08]} a3 {[%emt 0:00:03]} 39. Kd2 {[%emt 0:00:09]} a2 {[%emt 0:00:05]} 0-1

[Event "18th Brasschaat Open 2018"]
[Site "Brasschaat"]
[Date "2018.08.26"]
[Round "9"]
[White "Lambregts, Frank"]
[Black "De Bock, Thijs"]
[Result "0-1"]
[ECO "D01"]
[WhiteElo "1819"]
[BlackElo "1959"]
[Annotator "NA"]
[PlyCount "60"]
[EventDate "2018.08.18"]
[EventType "swiss"]
[EventCountry "BEL"]
[SourceTitle "playchess.com"]
[Source "ChessBase"]
[SourceQuality "1"]
[TimeControl "40/5400+30:1800+30"]

1. d4 {[%emt 0:00:00]} Nf6 {[%emt 0:00:00]} 2. Nc3 {[%emt 0:00:00]} d5 {[%emt 0:00:00]} 3. Bg5 {[%emt 0:00:00]} e6 {[%emt 0:00:00]} 4. Qd3 {[%emt 0:01:37]} h6 {[%emt 0:03:22]} 5. Bf4 {[%emt 0:03:04]} a6 {[%emt 0:00:25]} 6. g4 {[%emt 0:08:11]} c5 {[%emt 0:00:53]} 7. dxc5 {[%emt 0:02:56]} Bxc5 {[%emt 0:00:12]} 8. h3 {[%emt 0:10:32]} Nc6 {[%emt 0:07:05]} 9. a3 {[%emt 0:00:41]} e5 {[%emt 0:07:40]} 10. g5 {[%emt 0:03:08]} Nh5 {[%emt 0:03:34]} 11. Bh2 {[%emt 0:04:24]} Be6 {[%emt 0:06:14]} 12. e4 {[%emt 0:13:14]} d4 {[%emt 0:01:58]} ({And not} 12... Qxg5 13. Nxd5 Bxd5 14. exd5 $15) 13. Nd5 {[%emt 0:03:31]} hxg5 {[%emt 0:04:00]} 14. Qc4 {[%emt 0:12:42]} (14. Nf3 $142) 14... Bf8 {[%emt 0:03:31]} 15. Nf3 {[%emt 0:12:58]} Rc8 {[%emt 0:00:30]} 16. Qb3 {[%emt 0:01:39]} (16. O-O-O {was necessary.}) 16... Nf6 {[%emt 0:02:42]} 17. Nxg5 {[%emt 0:05:18]} Nxe4 {[%emt 0:04:34]} 18. Nxe6 {[%emt 0:01:15]} fxe6 {[%emt 0:00:26]} 19. Nb6 {[%emt 0:00:23]} Nc5 {[%emt 0:00:34]} 20. Qg3 $19 {[%emt 0:02:06]} Qxb6 {[%emt 0:00:08]} 21. Qg6+ {[%emt 0:00:06]} Kd7 {[%emt 0:02:27]} 22. Qf7+ {[%emt 0:01:04]} Be7 {[%emt 0:00:15]} 23. b4 {[%emt 0:00:12]} Nxb4 {[%emt 0:00:37]} 24. axb4 {[%emt 0:06:36]} Qxb4+ {[%emt 0:00:05]} 25. Ke2 {[%emt 0:00:06]} Ne4 {[%emt 0:00:57]} 26. Bg2 {[%emt 0:00:51]} Rxc2+ {[%emt 0:03:09]} 27. Kf1 {[%emt 0:01:00]} Rxf2+ {[%emt 0:00:06]} 28. Qxf2 {[%emt 0:00:08]} Nxf2 {[%emt 0:00:03]} 29. Kxf2 {[%emt 0:00:10]} Qd2+ {[%emt 0:00:07]} 30. Kg3 {[%emt 0:00:53]} Qf4# {[%emt 0:49:26]} 0-1